fUSD/lending_fUSD_20241116
["ID","MTS","AMOUNT","RATE_DAILY","PERIOD"]
[342392764,1731784190687,500.0,0.00025,60]
[342392765,1731784190739,500.0,0.00025,60]
[342392766,1731784190999,500.0,0.00025,60]
[342392767,1731784191324,500.0,0.00025,60]
[342392768,1731784191588,500.0,0.00025,60]
[342392769,1731784191881,500.0,0.00025,60]
[342392770,1731784192238,606.61255725,0.00025,60]
[342392781,1731784232165,-334.24362167,9e-05,3]
[342392783,1731784232235,-30.06414644,9e-05,3]
[342392784,1731784232244,-1556.81,9.041e-05,2]
[342392785,1731784232254,-432.72,9.041e-05,2]
[342392786,1731784232263,-900.0,9.1e-05,3]
[342392787,1731784232271,-300.0,9.177e-05,2]
[342392788,1731784232280,-150.0,9.178e-05,2]
[342392789,1731784232289,-150.0,9.178e-05,2]
[342392790,1731784232298,-150.0,9.178e-05,2]
[342392791,1731784232307,-649.7,9.178e-05,2]
[342392792,1731784232316,-723.82,9.178e-05,2]
[342392793,1731784232325,-150.0,9.178e-05,2]
[342392794,1731784232333,-150.0,9.178e-05,2]
[342392795,1731784232342,-302.3,9.178e-05,2]
[342392796,1731784232351,-150.0,9.178e-05,2]
[342392797,1731784232360,-150.0,9.178e-05,2]
[342392798,1731784232370,-150.0,9.178e-05,2]
[342392799,1731784232379,-1400.0,9.2e-05,3]
[342392800,1731784232388,-150.0,9.2e-05,2]
[342392801,1731784232397,-447.27,9.2e-05,2]
[342392802,1731784232411,-762.38,9.2e-05,2]
[342392803,1731784232420,-589.5181,9.289e-05,2]
[342392804,1731784232429,-150.0,9.29e-05,2]
[342392805,1731784232438,-1900.0,9.3e-05,3]
[342392806,1731784232447,-1441.5028,9.389e-05,2]
[342392807,1731784232456,-2400.0,9.4e-05,3]
[342392808,1731784232465,-532.55,9.419e-05,2]
[342392809,1731784232475,-1000.0,9.419e-05,2]
[342392810,1731784232484,-150.0,9.478e-05,2]
[342392811,1731784232493,-2852.29985776,9.479e-05,2]
[342392812,1731784232505,-1397.23565988,9.479e-05,2]
[342392813,1731784232551,-589.51802975,9.479e-05,2]
[342392814,1731784232563,-4425.35039331,9.479e-05,2]
[342392815,1731784232572,-500.0,9.489e-05,2]
[342392816,1731784232581,-92.64856608,9.489e-05,2]
[342392817,1731784232593,-240.76053392,9.489e-05,2]
[342392818,1731784232602,-63.82063282,9.489e-05,2]
[342392819,1731784232619,-5825.42227855,9.489e-05,2]
[342392820,1731784232642,-271.61954575,9.489e-05,2]
[342392821,1731784232653,-813.91313364,9.489e-05,2]
[342392822,1731784232665,-10319.32788082,9.489e-05,2]
[342392823,1731784232675,-23537.88652842,9.489e-05,2]
[342392824,1731784232684,-335.9469,9.489e-05,2]
[342392826,1731784232694,-6884.4546,9.489e-05,2]
[342392828,1731784232703,-6626.0,9.491e-05,2]
[342392829,1731784232712,-400.0,9.5e-05,3]
[342392831,1731784232722,-2500.0,9.505e-05,2]
[342392833,1731784232731,-2500.0,9.505e-05,2]
[342392834,1731784232740,-433.27,9.534e-05,2]
[342392835,1731784232748,-433.27,9.534e-05,2]
[342392836,1731784232758,-433.27,9.534e-05,2]
[342392837,1731784232771,-165.48,9.589e-05,2]
[342392838,1731784232781,-200.0,9.6e-05,2]
[342392839,1731784232791,-400.0,9.6e-05,3]
[342392840,1731784232800,-1000.0,9.6e-05,2]
[342392841,1731784232809,-999.99,9.67e-05,2]
[342392842,1731784232818,-2932.54,9.67e-05,2]
[342392843,1731784232828,-257.0,9.67e-05,2]
[342392844,1731784232837,-150.99,9.67e-05,2]
[342392845,1731784233110,-3869.37,9.67e-05,2]
[342392846,1731784233123,-299.99,9.67e-05,2]
[342392847,1731784233133,-349.29,9.67e-05,2]
[342392848,1731784233143,-400.0,9.7e-05,3]
[342392849,1731784233153,-150.0,9.729e-05,2]
[342392850,1731784233162,-150.0,9.729e-05,2]
[342392851,1731784233172,-150.0,9.73e-05,2]
[342392852,1731784233182,-150.0,9.733e-05,2]
[342392853,1731784233192,-150.0,9.737e-05,2]
[342392854,1731784233202,-150.0,9.738e-05,2]
[342392855,1731784233212,-150.0,9.739e-05,2]
[342392856,1731784233222,-150.0,9.742e-05,2]
[342392857,1731784233232,-150.0,9.742e-05,2]
[342392858,1731784233242,-150.0,9.751e-05,2]
[342392859,1731784233252,-150.0,9.752e-05,2]
[342392860,1731784233262,-150.0,9.759e-05,2]
[342392861,1731784233271,-150.0,9.759e-05,2]
[342392862,1731784233280,-150.0,9.768e-05,2]
[342392863,1731784233290,-204.29956225,9.771e-05,2]
[342392864,1731784233299,-150.0,9.775e-05,2]
[342392865,1731784233309,-5000.0,9.78e-05,2]
[342392866,1731784233318,-2500.0,9.78e-05,2]
[342392867,1731784233327,-150.0,9.782e-05,2]
[342392868,1731784233336,-150.0,9.784e-05,2]
[342392869,1731784233346,-150.0,9.784e-05,2]
[342392870,1731784233355,-150.0,9.785e-05,2]
[342392871,1731784233365,-150.0,9.79e-05,2]
[342392872,1731784233375,-150.0,9.793e-05,2]
[342392873,1731784233384,-1500.0,9.794e-05,2]
[342392874,1731784233394,-150.0,9.795e-05,2]
[342392875,1731784233404,-150.0,9.796e-05,2]
[342392876,1731784233414,-8943.1862,9.8e-05,2]
[342392877,1731784233423,-32749.97630323,9.8e-05,2]
[342392878,1731784233433,-400.0,9.8e-05,3]
[342392879,1731784233442,-150.0,9.809e-05,2]
[342392880,1731784233452,-150.0,9.812e-05,2]
[342392881,1731784233462,-150.0,9.815e-05,2]
[342392882,1731784233471,-150.0,9.821e-05,2]
[342392883,1731784233481,-150.0,9.824e-05,2]
[342392884,1731784233490,-150.0,9.825e-05,2]
[342392885,1731784233500,-150.0,9.826e-05,2]
[342392886,1731784233510,-150.0,9.826e-05,2]
[342392887,1731784233519,-150.0,9.826e-05,2]
[342392888,1731784233529,-150.0,9.832e-05,2]
[342392889,1731784233539,-150.0,9.832e-05,2]
[342392890,1731784233548,-150.0,9.833e-05,2]
[342392891,1731784233558,-150.0,9.837e-05,2]
[342392892,1731784233569,-150.0,9.839e-05,2]
[342392893,1731784233578,-150.0,9.839e-05,2]
[342392894,1731784233588,-150.0,9.839e-05,2]
[342392895,1731784233598,-150.0,9.841e-05,2]
[342392896,1731784233607,-150.0,9.843e-05,2]
[342392897,1731784233619,-150.0,9.845e-05,2]
[342392898,1731784233629,-150.0,9.847e-05,2]
[342392899,1731784233640,-150.0,9.848e-05,2]
[342392900,1731784233650,-150.0,9.853e-05,2]
[342392901,1731784233660,-150.0,9.854e-05,2]
[342392902,1731784233671,-150.0,9.855e-05,2]
[342392903,1731784233680,-150.0,9.859e-05,2]
[342392904,1731784233690,-150.0,9.86e-05,2]
[342392905,1731784233701,-150.0,9.863e-05,2]
[342392906,1731784233711,-150.0,9.864e-05,2]
[342392907,1731784233722,-150.0,9.866e-05,2]
[342392908,1731784233732,-150.0,9.867e-05,2]
[342392909,1731784233743,-150.0,9.867e-05,2]
[342392910,1731784233753,-150.0,9.869e-05,2]
[342392911,1731784233764,-150.0,9.871e-05,2]
[342392912,1731784233774,-150.0,9.871e-05,2]
[342392913,1731784233784,-150.0,9.879e-05,2]
[342392914,1731784233794,-202552.48990623,9.88e-05,2]
[342392917,1731784238228,-150.0,9.727e-05,2]
[342392918,1731784238238,-150.0,9.73e-05,2]
[342392919,1731784238247,-150.0,9.731e-05,2]
[342392920,1731784238257,-150.0,9.733e-05,2]
[342392921,1731784238266,-150.0,9.736e-05,2]
[342392922,1731784238275,-150.0,9.736e-05,2]
[342392923,1731784238285,-150.0,9.739e-05,2]
[342392924,1731784238294,-150.0,9.745e-05,2]
[342392925,1731784238303,-150.0,9.748e-05,2]
[342392926,1731784238312,-150.0,9.749e-05,2]
[342392927,1731784238322,-150.0,9.75e-05,2]
[342392928,1731784238331,-150.0,9.753e-05,2]
[342392929,1731784238340,-150.0,9.753e-05,2]
[342392930,1731784238349,-150.0,9.759e-05,2]
[342392931,1731784238358,-150.0,9.767e-05,2]
[342392932,1731784238368,-150.0,9.768e-05,2]
[342392933,1731784238377,-150.0,9.783e-05,2]
[342392934,1731784238386,-150.0,9.793e-05,2]
[342392935,1731784238396,-150.0,9.797e-05,2]
[342392936,1731784238405,-150.0,9.797e-05,2]
[342392937,1731784238414,-150.0,9.803e-05,2]
[342392938,1731784238423,-150.0,9.805e-05,2]
[342392939,1731784238432,-150.0,9.814e-05,2]
[342392940,1731784238441,-150.0,9.815e-05,2]
[342392941,1731784238450,-150.0,9.818e-05,2]
[342392942,1731784238460,-150.0,9.822e-05,2]
[342392943,1731784238469,-150.0,9.83e-05,2]
[342392944,1731784238478,-150.0,9.831e-05,2]
[342392945,1731784238487,-150.0,9.84e-05,2]
[342392946,1731784238496,-150.0,9.844e-05,2]
[342392947,1731784238505,-150.0,9.845e-05,2]
[342392948,1731784238514,-150.0,9.845e-05,2]
[342392949,1731784238523,-150.0,9.848e-05,2]
[342392950,1731784238533,-150.0,9.855e-05,2]
[342392951,1731784238542,-150.0,9.856e-05,2]
[342392952,1731784238551,-150.0,9.864e-05,2]
[342392953,1731784238560,-150.0,9.867e-05,2]
[342392954,1731784238569,-150.0,9.868e-05,2]
[342392955,1731784238578,-150.0,9.87e-05,2]
[342392956,1731784238587,-150.0,9.874e-05,2]
[342392957,1731784238597,-39647.83522215,9.88e-05,2]
[342392958,1731784238609,-5001.47066045,9.88e-05,2]
[342392959,1731784238620,-141937.10680571,9.88e-05,2]
[342392960,1731784238630,-150.0,9.881e-05,2]
[342392961,1731784238640,-150.0,9.885e-05,2]
[342392962,1731784238649,-150.0,9.887e-05,2]
[342392963,1731784238659,-13991.4689,9.887e-05,2]
[342392964,1731784238668,-150.0,9.889e-05,2]
[342392965,1731784238678,-1500.0,9.889e-05,2]
[342392966,1731784238687,-150.0,9.89e-05,2]
[342392967,1731784238696,-150.0,9.891e-05,2]
[342392968,1731784238706,-150.0,9.893e-05,2]
[342392969,1731784238715,-1000.0,9.9e-05,2]
[342392970,1731784238725,-5935.0,9.9e-05,2]
[342392971,1731784238734,-150.0,9.9e-05,2]
[342392972,1731784238744,-13644.0,9.9e-05,2]
[342392973,1731784238753,-1160.0,9.9e-05,2]
[342392974,1731784238762,-1092.0,9.9e-05,2]
[342392975,1731784238773,-8882.672818,9.9e-05,2]
[342392976,1731784238783,-4136.239,9.9e-05,2]
[342392977,1731784238792,-150.0,9.9e-05,2]
[342392978,1731784238801,-1224.0,9.9e-05,3]
[342392980,1731784238811,-1728.0,9.9e-05,2]
[342392982,1731784238820,-1112.89356595,9.9e-05,2]
[342392983,1731784238830,-150.0,9.901e-05,2]
[342392985,1731784238839,-150.0,9.904e-05,2]
[342392986,1731784238853,-150.0,9.906e-05,2]
[342392988,1731784238862,-150.0,9.913e-05,2]
[342392989,1731784238874,-150.0,9.916e-05,2]
[342392991,1731784238885,-150.0,9.918e-05,2]
[342392992,1731784238895,-150.0,9.922e-05,2]
[342392994,1731784238906,-150.0,9.926e-05,2]
[342392996,1731784238916,-150.0,9.926e-05,2]
[342392997,1731784238927,-150.0,9.927e-05,2]
[342392999,1731784238939,-150.0,9.927e-05,2]
[342393000,1731784238949,-150.0,9.929e-05,2]
[342393002,1731784238959,-150.0,9.936e-05,2]
[342393004,1731784238971,-150.0,9.936e-05,2]
[342393005,1731784238981,-150.0,9.94e-05,2]
[342393007,1731784238991,-150.0,9.945e-05,2]
[342393008,1731784239000,-150.0,9.946e-05,2]
[342393010,1731784239009,-3211.668,9.949e-05,2]
[342393012,1731784239019,-175.46,9.949e-05,2]
[342393013,1731784239028,-2147.34908068,9.951e-05,2]
[342393015,1731784239038,-150.0,9.951e-05,2]
[342393017,1731784239047,-150.0,9.953e-05,2]
[342393018,1731784239056,-200.0,9.954e-05,2]
[342393020,1731784239066,-150.0,9.955e-05,2]
[342393022,1731784239075,-150.0,9.956e-05,2]
[342393023,1731784239085,-200.0,9.956e-05,2]
[342393025,1731784239095,-150.0,9.958e-05,2]
[342393027,1731784239104,-150.0,9.958e-05,2]
[342393028,1731784239114,-200.0,9.959e-05,2]
[342393030,1731784239127,-150.0,9.959e-05,2]
[342393032,1731784239141,-2147.34908068,9.96e-05,2]
[342393034,1731784239150,-150.0,9.96e-05,2]
[342393035,1731784239160,-150.0,9.961e-05,2]
[342393037,1731784239169,-150.0,9.961e-05,2]
[342393039,1731784239178,-150.0,9.961e-05,2]
[342393040,1731784239187,-200.0,9.962e-05,2]
[342393042,1731784239196,-150.0,9.962e-05,2]
[342393043,1731784239205,-200.0,9.966e-05,2]
[342393045,1731784239214,-150.0,9.967e-05,2]
[342393047,1731784239224,-150.0,9.967e-05,2]
[342393048,1731784239234,-150.0,9.968e-05,2]
[342393050,1731784239243,-200.0,9.968e-05,2]
[342393052,1731784239253,-150.0,9.97e-05,2]
[342393053,1731784239263,-150.0,9.971e-05,2]
[342393055,1731784239272,-2147.34908068,9.971e-05,2]
[342393057,1731784239281,-150.0,9.972e-05,2]
[342393058,1731784239290,-200.0,9.972e-05,2]
[342393060,1731784239300,-500.0,9.973e-05,2]
[342393062,1731784239312,-500.0,9.973e-05,2]
[342393063,1731784239322,-150.0,9.974e-05,2]
[342393064,1731784239332,-150.0,9.977e-05,2]
[342393065,1731784239341,-150.0,9.977e-05,2]
[342393066,1731784239351,-150.0,9.978e-05,2]
[342393068,1731784239360,-150.0,9.979e-05,2]
[342393070,1731784239372,-150.0,9.98e-05,2]
[342393071,1731784239381,-150.0,9.982e-05,2]
[342393073,1731784239391,-150.0,9.983e-05,2]
[342393074,1731784239400,-150.0,9.984e-05,2]
[342393076,1731784239409,-200.0,9.985e-05,2]
[342393077,1731784239419,-150.0,9.985e-05,2]
[342393078,1731784239428,-150.0,9.985e-05,2]
[342393079,1731784239438,-150.0,9.987e-05,2]
[342393080,1731784239447,-150.0,9.987e-05,2]
[342393081,1731784239457,-1311.4479959,9.987e-05,2]
[342393082,1731784239466,-485.6609524,9.987e-05,2]
[342393083,1731784239476,-191.0424389,9.987e-05,2]
[342393084,1731784239486,-1004.2114499,9.987e-05,2]
[342393085,1731784239495,-150.0,9.989e-05,2]
[342393086,1731784239504,-150.0,9.992e-05,2]
[342393087,1731784239514,-1187.3109337,9.993e-05,2]
[342393088,1731784239523,-1063.1738715,9.993e-05,2]
[342393089,1731784239533,-939.0368093,9.993e-05,2]
[342393090,1731784239542,-439.689992,9.993e-05,2]
[342393091,1731784239552,-393.7190316,9.993e-05,2]
[342393092,1731784239561,-347.7480712,9.993e-05,2]
[342393093,1731784239570,-191.0424389,9.993e-05,2]
[342393094,1731784239580,-191.0424389,9.993e-05,2]
[342393095,1731784239589,-191.0424389,9.993e-05,2]
[342393096,1731784239598,-909.1563202,9.993e-05,2]
[342393097,1731784239607,-814.1011906,9.993e-05,2]
[342393098,1731784239617,-719.046061,9.993e-05,2]
[342393099,1731784239632,-2147.34908068,9.993e-05,2]
[342393100,1731784239642,-2147.34908068,9.996e-05,2]
[342393101,1731784239652,-150.0,9.997e-05,2]
[342393102,1731784239662,-150.0,9.997e-05,2]
[342393103,1731784239671,-200.0,9.997e-05,2]
[342393104,1731784239681,-200.0,9.998e-05,2]
[342393105,1731784239690,-200.0,9.998e-05,2]
[342393106,1731784239700,-8500.0,9.999e-05,2]
[342393107,1731784239710,-150.0,9.999e-05,2]
[342393108,1731784239719,-4398.08920975,0.0001,2]
[342393109,1731784239729,-214210.35671416,0.0001,2]
[342393110,1731784239738,-178.649,0.0001,2]
[342393111,1731784239748,-296.578,0.0001,2]
[342393112,1731784239763,-153.556,0.0001,2]
[342393113,1731784239773,-1255.0,0.0001,2]
[342393114,1731784239782,-563.0,0.0001,2]
[342393115,1731784239791,-1993.0,0.0001,2]
[342393116,1731784239801,-150.0,0.0001,2]
[342393117,1731784239810,-628.0,0.0001,2]
[342393118,1731784239819,-1925.0,0.0001,2]
[342393119,1731784239828,-560.0,0.0001,2]
[342393120,1731784239837,-3746.0,0.0001,2]
[342393121,1731784239848,-814.0,0.0001,2]
[342393122,1731784239860,-1260.0,0.0001,2]
[342393123,1731784239871,-920.0,0.0001,2]
[342393124,1731784239881,-3490.0,0.0001,2]
[342393125,1731784239890,-2252639.23640292,0.0001,2]
[342393126,1731784239903,-616.0766574,0.0001,2]
[342393127,1731784239914,-751.5,0.0001,2]
[342393128,1731784239927,-18392.61936464,0.0001,2]
[342393129,1731784239938,-2648.27086058,0.0001,2]
[342393130,1731784239950,-5097.51448071,0.0001,2]
[342393131,1731784239961,-1790.597465,0.0001,2]
[342393132,1731784239985,-150.0,9.838e-05,2]
[342393133,1731784239995,-144.64255883,0.0001,2]
[342393134,1731784240006,-16162.8612,0.0001,2]
[342393135,1731784240025,-150.0,9.997e-05,2]
[342393136,1731784240034,-1191301.64705239,0.0001,2]
[342393137,1731784240044,-158669.15,0.0001,2]
[342393138,1731784240053,-656.62414393,0.0001,2]
[342393139,1731784240063,-179424.90658785,0.0001,2]
[342393140,1731784240074,-684.91675581,0.0001,2]
[342393141,1731784240119,-30000.0697,9.7e-05,2]
[342393142,1731784240129,-150.0,9.733e-05,2]
[342393143,1731784240139,-150.0,9.758e-05,2]
[342393144,1731784240148,-150.0,9.84e-05,2]
[342393145,1731784240158,-2185241.98861162,0.0001,2]
[342393148,1731784240738,-150.0,9.734e-05,2]
[342393149,1731784240747,-150.0,9.735e-05,2]
[342393150,1731784240757,-150.0,9.739e-05,2]
[342393151,1731784240766,-38.72496605,9.74e-05,2]
[342393152,1731784240779,-111.27503395,9.74e-05,2]
[342393153,1731784240788,-150.0,9.75e-05,2]
[342393154,1731784240798,-150.0,9.759e-05,2]
[342393155,1731784240807,-132.0535875,9.76e-05,2]
[342393156,1731784240819,-17.9464125,9.76e-05,2]
[342393157,1731784240829,-150.0,9.779e-05,2]
[342393158,1731784240839,-150.0,9.779e-05,2]
[342393159,1731784240854,-150.0,9.796e-05,2]
[342393160,1731784240864,-150.0,9.81e-05,2]
[342393161,1731784240873,-150.0,9.816e-05,2]
[342393162,1731784240883,-150.0,9.821e-05,2]
[342393163,1731784240893,-150.0,9.823e-05,2]
[342393164,1731784240902,-44.03358754,9.825e-05,2]
[342393165,1731784240965,-150.0,9.73e-05,2]
[342393166,1731784240974,-150.0,9.734e-05,2]
[342393167,1731784240983,-105.96641246,9.825e-05,2]
[342393168,1731784240993,-150.0,9.826e-05,2]
[342393169,1731784241002,-150.0,9.838e-05,2]
[342393170,1731784241012,-150.0,9.858e-05,2]
[342393171,1731784241021,-150.0,9.86e-05,2]
[342393172,1731784241030,-150.0,9.869e-05,2]
[342393173,1731784241040,-150.0,9.879e-05,2]
[342393174,1731784241051,-150.0,9.887e-05,2]
[342393175,1731784241061,-150.0,9.9e-05,2]
[342393176,1731784241071,-150.0,9.911e-05,2]
[342393177,1731784241080,-150.0,9.912e-05,2]
[342393178,1731784241089,-150.0,9.922e-05,2]
[342393179,1731784241099,-150.0,9.931e-05,2]
[342393180,1731784241109,-150.0,9.945e-05,2]
[342393181,1731784241118,-150.0,9.947e-05,2]
[342393182,1731784241131,-150.0,9.948e-05,2]
[342393183,1731784241141,-150.0,9.95e-05,2]
[342393184,1731784241150,-150.0,9.96e-05,2]
[342393185,1731784241160,-150.0,9.96e-05,2]
[342393186,1731784241169,-150.0,9.961e-05,2]
[342393187,1731784241179,-150.0,9.966e-05,2]
[342393188,1731784241189,-150.0,9.969e-05,2]
[342393189,1731784241198,-150.0,9.971e-05,2]
[342393190,1731784241208,-150.0,9.974e-05,2]
[342393191,1731784241218,-150.0,9.974e-05,2]
[342393192,1731784241228,-150.0,9.979e-05,2]
[342393193,1731784241237,-150.0,9.982e-05,2]
[342393194,1731784241247,-150.0,9.986e-05,2]
[342393195,1731784241258,-150.0,9.987e-05,2]
[342393196,1731784241269,-150.0,9.995e-05,2]
[342393197,1731784241279,-1818.52681523,0.0001,2]
[342393198,1731784243361,-150.0,9.739e-05,2]
[342393199,1731784243371,-150.0,9.761e-05,2]
[342393200,1731784243384,-150.0,9.765e-05,2]
[342393201,1731784243394,-150.0,9.768e-05,2]
[342393202,1731784243403,-150.0,9.774e-05,2]
[342393203,1731784243412,-150.0,9.819e-05,2]
[342393204,1731784243421,-150.0,9.849e-05,2]
[342393205,1731784243431,-150.0,9.853e-05,2]
[342393206,1731784243440,-150.0,9.885e-05,2]
[342393207,1731784243449,-150.0,9.941e-05,2]
[342393208,1731784243458,-150.0,9.968e-05,2]
[342393209,1731784243468,-13789.6,0.0001,2]
[342393210,1731784243479,-7503.78177163,0.0001,2]
[342393211,1731784243491,-3628.59977471,0.0001,2]
[342393212,1731784243502,-4504.53012786,0.0001,2]
[342393213,1731784243513,-4350.24644181,0.0001,2]
[342393214,1731784243524,-1085.597083,0.0001,2]
[342393215,1731784243535,-2929.29420079,0.0001,2]
[342393216,1731784243546,-2028.69509365,0.0001,2]
[342393217,1731784243557,-5784.0862117,0.0001,2]
[342393218,1731784243569,-940.37513984,0.0001,2]
[342393222,1731784243670,-529.37736323,0.0001,2]
[342393238,1731784246173,-294.45668613,9.78e-05,2]
[342393239,1731784246275,-205.54331387,9.78e-05,2]
[342393240,1731784246284,-552.82841979,0.0001,2]
[342393241,1731784246295,-38440.92847413,0.0001,2]
[342393242,1731784246306,-15926.86721473,0.0001,2]
[342393243,1731784246318,-821.45,0.0001,2]
[342393244,1731784246329,-8937.13859999,0.0001,2]
[342393245,1731784246350,-1368.7068412,0.0001,2]
[342393246,1731784246419,-366.60943958,0.0001,2]
[342393247,1731784246431,-15005.21602204,0.0001,2]
[342393250,1731784246581,-150.0,9.837e-05,2]
[342393251,1731784246591,-756.7490969,0.0001,2]
[342393252,1731784246602,-2672.03470995,0.0001,2]
[342393253,1731784246614,-9551.46945449,0.0001,2]
[342393254,1731784246637,-3464.82992509,9.78e-05,2]
[342393255,1731784246650,-1535.17007491,9.78e-05,2]
[342393257,1731784246660,-4825.42992509,0.0001,2]
[342393258,1731784246672,-739.8,0.0001,2]
[342393259,1731784246798,903.67,0.00025,60]
[342393260,1731784247061,903.67,0.00025,60]
[342393261,1731784247324,903.67,0.00025,60]
[342393262,1731784247587,903.67,0.00025,60]
[342393263,1731784247852,903.67,0.00025,60]
[342393264,1731784248133,903.67,0.00025,60]
[342393265,1731784248412,903.67,0.00025,60]
[342393266,1731784248682,903.67,0.00025,60]
[342393267,1731784248958,903.67,0.00025,60]
[342393268,1731784249232,903.67,0.00025,60]
[342393269,1731784249500,903.67,0.00025,60]
[342393270,1731784249768,903.67,0.00025,60]
[342393271,1731784250027,903.67,0.00025,60]
[342393272,1731784250632,903.67,0.00025,60]
[342393273,1731784250938,903.67,0.00025,60]
[342393274,1731784252890,903.67,0.00025,60]
[342393275,1731784252940,903.67,0.00025,60]
[342393276,1731784253002,903.67,0.00025,60]
[342393277,1731784253306,903.67,0.00025,60]
[342393278,1731784253577,903.67,0.00025,60]
[342393279,1731784253864,903.67,0.00025,60]
[342393280,1731784254158,903.67,0.00025,60]
[342393281,1731784254427,903.67,0.00025,60]
[342393282,1731784254696,903.88661518,0.00025,60]
[342393283,1731784295634,500.0,0.00025,60]
[342393284,1731784295904,500.0,0.00025,60]
[342393285,1731784296207,500.0,0.00025,60]
[342393286,1731784296815,500.0,0.00025,60]
[342393287,1731784297456,501.34117507,0.00025,60]
[342393288,1731784346045,500.0,0.00025,60]
[342393289,1731784346310,500.0,0.00025,60]
[342393290,1731784346578,500.0,0.00025,60]
[342393291,1731784346848,500.0,0.00025,60]
[342393292,1731784347331,500.0,0.00025,60]
[342393293,1731784347390,354.72,0.00025,60]
[342393294,1731784377598,1008.21,0.00025,60]
[342393295,1731784377932,1008.21,0.00025,60]
[342393296,1731784378197,1008.21,0.00025,60]
[342393297,1731784378469,1008.21,0.00025,60]
[342393298,1731784378893,1008.21,0.00025,60]
[342393299,1731784379031,1008.21,0.00025,60]
[342393300,1731784379292,1008.21,0.00025,60]
[342393301,1731784379545,1008.21,0.00025,60]
[342393302,1731784379885,1008.21,0.00025,60]
[342393303,1731784380161,1008.21,0.00025,60]
[342393304,1731784380481,1008.21,0.00025,60]
[342393305,1731784380740,1008.21,0.00025,60]
[342393306,1731784381017,1008.21,0.00025,60]
[342393307,1731784381309,1008.21,0.00025,60]
[342393308,1731784381708,1008.21,0.00025,60]
[342393309,1731784381972,1008.21,0.00025,60]
[342393310,1731784382316,1008.21,0.00025,60]
[342393311,1731784382586,1008.21,0.00025,60]
[342393312,1731784382875,1008.21,0.00025,60]
[342393313,1731784383160,1008.21,0.00025,60]
[342393314,1731784383441,1008.21,0.00025,60]
[342393315,1731784383717,1008.21,0.00025,60]
[342393316,1731784383993,1008.21,0.00025,60]
[342393317,1731784384306,1008.24095182,0.00025,60]
[342393318,1731784406067,500.0,0.00025,60]
[342393319,1731784406352,500.0,0.00025,60]
[342393320,1731784406632,204.3,0.00025,60]
[342393321,1731784412671,500.0,0.00024999,120]
[342393322,1731784441646,500.0,0.00025,60]
[342393323,1731784441700,500.0,0.00025,60]
[342393324,1731784441967,269.27850018,0.00025,60]
[342393325,1731784481839,500.0,0.00025,60]
[342393326,1731784482104,381.08521673,0.00025,60]
[342393327,1731784489716,774.58,0.00025,60]
[342393328,1731784489987,774.58,0.00025,60]
[342393329,1731784490173,371.11481624,0.00025,60]
[342393330,1731784490347,774.58,0.00025,60]
[342393331,1731784490651,774.58,0.00025,60]
[342393332,1731784490908,774.58,0.00025,60]
[342393333,1731784491168,774.58,0.00025,60]
[342393334,1731784491426,774.58,0.00025,60]
[342393335,1731784491729,774.58,0.00025,60]
[342393336,1731784492315,774.58,0.00025,60]
[342393337,1731784492584,774.58,0.00025,60]
[342393338,1731784492834,774.58,0.00025,60]
[342393339,1731784493091,774.58,0.00025,60]
[342393340,1731784493368,774.58,0.00025,60]